[Event "*** Titled Tuesday Blitz"]
[Site "Chess.com"]
[Date "2018.06.05"]
[Round "9"]
[White "JaimeSantosLatasa"]
[Black "murmah2003"]
[Result "1-0"]
[WhiteElo "2672"]
[BlackElo "2496"]
[TimeControl "180+2"]
[EndTime "15:10:13 PDT"]
[Termination "JaimeSantosLatasa won by resignation"]

1. e4 {[%clk 0:03:01.9]} 1... c5 {[%clk 0:02:50.4]} 2. Nf3 {[%clk 0:02:59.8]}
2... d6 {[%clk 0:02:49.9]} 3. d4 {[%clk 0:02:52.5]} 3... cxd4 {[%clk 0:02:51.8]}
4. Nxd4 {[%clk 0:02:53.8]} 4... Nf6 {[%clk 0:02:52.8]} 5. Nc3 {[%clk 0:02:53.2]}
5... a6 {[%clk 0:02:53.7]} 6. Be2 {[%clk 0:02:49.1]} 6... e5 {[%clk 0:02:53.8]}
7. Nf3 {[%clk 0:02:45.2]} 7... h6 {[%clk 0:02:49.9]} 8. Nd2 {[%clk 0:02:44.3]}
8... b5 {[%clk 0:02:30.4]} 9. a4 {[%clk 0:02:43.5]} 9... b4 {[%clk 0:02:27.9]}
10. Nd5 {[%clk 0:02:43.6]} 10... Nxd5 {[%clk 0:02:22.2]} 11. exd5 {[%clk
0:02:45.5]} 11... Bb7 {[%clk 0:02:23.1]} 12. Nc4 {[%clk 0:02:44.6]} 12... Nd7
{[%clk 0:02:16.1]} 13. a5 {[%clk 0:02:41.9]} 13... Rb8 {[%clk 0:01:47.4]} 14.
O-O {[%clk 0:02:37.2]} 14... Be7 {[%clk 0:01:47.8]} 15. Be3 {[%clk 0:02:26.2]}
15... O-O {[%clk 0:01:45.1]} 16. Ra4 {[%clk 0:02:05.9]} 16... Bc8 {[%clk
0:01:01.5]} 17. Ba7 {[%clk 0:01:35.9]} 17... Rb5 {[%clk 0:00:24.4]} 18. Nb6
{[%clk 0:01:19.1]} 18... Rc5 {[%clk 0:00:25]} 19. Nxc8 {[%clk 0:01:11.5]} 19...
Qxc8 {[%clk 0:00:26.9]} 20. Bxc5 {[%clk 0:01:03.7]} 20... Qxc5 {[%clk
0:00:16.9]} 21. Bxa6 {[%clk 0:01:01.9]} 21... Ra8 {[%clk 0:00:16.2]} 22. Qe2
{[%clk 0:00:56.4]} 22... Qxd5 {[%clk 0:00:07.1]} 23. Bc4 {[%clk 0:00:52.5]}
23... Qc6 {[%clk 0:00:04.3]} 24. Bb5 {[%clk 0:00:52.6]} 24... Qc7 {[%clk
0:00:05.5]} 25. Bxd7 {[%clk 0:00:54.1]} 25... Qxd7 {[%clk 0:00:07.4]} 26. b3
{[%clk 0:00:47.4]} 26... Qe6 {[%clk 0:00:03.7]} 27. a6 {[%clk 0:00:45.4]} 27...
d5 {[%clk 0:00:05.1]} 28. Qb5 {[%clk 0:00:42.1]} 28... e4 {[%clk 0:00:03.3]} 29.
Qb7 {[%clk 0:00:39.6]} 29... Rf8 {[%clk 0:00:03.9]} 30. a7 {[%clk 0:00:35.6]}
30... e3 {[%clk 0:00:04]} 31. a8=Q {[%clk 0:00:34.5]} 31... exf2+ {[%clk
0:00:02.4]} 32. Kh1 {[%clk 0:00:32.6]} 32... Qe2 {[%clk 0:00:03.6]} 33. Raa1
{[%clk 0:00:30.2]} 33... Rxa8 {[%clk 0:00:03]} 34. Qxa8+ {[%clk 0:00:24.9]}
34... Kh7 {[%clk 0:00:04.3]} 35. Qxd5 {[%clk 0:00:25.3]} 35... Qxc2 {[%clk
0:00:04.5]} 36. Qxf7 {[%clk 0:00:21.5]} 36... Bf6 {[%clk 0:00:04.1]} 37. Rad1
{[%clk 0:00:18.4]} 37... Qe2 {[%clk 0:00:03.9]} 38. Qc4 {[%clk 0:00:18.4]} 38...
Qb2 {[%clk 0:00:03.6]} 39. Qd3+ {[%clk 0:00:19.5]} 39... Kg8 {[%clk 0:00:04.4]}
40. Rd2 {[%clk 0:00:20.4]} 40... Qe5 {[%clk 0:00:04.4]} 41. Rdxf2 {[%clk
0:00:21.3]} 1-0

[Event "*** Titled Tuesday Blitz"]
[Site "Chess.com"]
[Date "2018.06.05"]
[Round "9"]
[White "nubair1198"]
[Black "NMJeevanK"]
[Result "1-0"]
[WhiteElo "2541"]
[BlackElo "2315"]
[TimeControl "180+2"]
[EndTime "15:10:19 PDT"]
[Termination "nubair1198 won by resignation"]

1. c4 {[%clk 0:03:01.9]} 1... e5 {[%clk 0:03:01]} 2. Nc3 {[%clk 0:03:02.1]} 2...
Bb4 {[%clk 0:03:02.5]} 3. Nd5 {[%clk 0:03:02.3]} 3... Be7 {[%clk 0:03:02]} 4.
Qc2 {[%clk 0:02:54.1]} 4... c6 {[%clk 0:03:01.9]} 5. Nxe7 {[%clk 0:02:54.8]}
5... Qxe7 {[%clk 0:03:03.6]} 6. d3 {[%clk 0:02:48.9]} 6... Nf6 {[%clk
0:03:01.8]} 7. g3 {[%clk 0:02:45.2]} 7... O-O {[%clk 0:02:58]} 8. Bg2 {[%clk
0:02:45.4]} 8... d5 {[%clk 0:02:53.9]} 9. Nf3 {[%clk 0:02:46.9]} 9... h6 {[%clk
0:02:49.3]} 10. O-O {[%clk 0:02:47.4]} 10... Bf5 {[%clk 0:02:46.4]} 11. Nh4
{[%clk 0:02:42.2]} 11... Be6 {[%clk 0:02:43.5]} 12. e4 {[%clk 0:02:39.1]} 12...
Nbd7 {[%clk 0:02:40.1]} 13. Bd2 {[%clk 0:02:32.5]} 13... Rad8 {[%clk 0:02:38.4]}
14. Rae1 {[%clk 0:02:33.5]} 14... Nb6 {[%clk 0:02:36.6]} 15. exd5 {[%clk
0:02:33.6]} 15... cxd5 {[%clk 0:02:37.1]} 16. Rxe5 {[%clk 0:02:32.1]} 16... dxc4
{[%clk 0:02:36.7]} 17. dxc4 {[%clk 0:02:33.4]} 17... Rxd2 {[%clk 0:02:24.5]} 18.
Qxd2 {[%clk 0:02:04.2]} 18... Nxc4 {[%clk 0:02:24.9]} 19. Rxe6 {[%clk
0:02:05.8]} 19... Qxe6 {[%clk 0:02:22.2]} 20. Qb4 {[%clk 0:02:06.9]} 20... Nb6
{[%clk 0:01:35.6]} 21. a4 {[%clk 0:02:04.6]} 21... Nfd5 {[%clk 0:01:33.9]} 22.
Qb3 {[%clk 0:02:03.6]} 22... a5 {[%clk 0:01:21.4]} 23. Rd1 {[%clk 0:02:05]}
23... Nb4 {[%clk 0:01:18.1]} 24. Qxe6 {[%clk 0:02:04.2]} 24... fxe6 {[%clk
0:01:20]} 25. b3 {[%clk 0:01:58.4]} 25... N6d5 {[%clk 0:01:21.2]} 26. Ng6 {[%clk
0:01:56.7]} 26... Rc8 {[%clk 0:01:10.2]} 27. Re1 {[%clk 0:01:42.6]} 27... Kf7
{[%clk 0:00:58.3]} 28. Ne5+ {[%clk 0:01:43.5]} 28... Kf6 {[%clk 0:00:55.3]} 29.
Bh3 {[%clk 0:01:45.4]} 29... Rc3 {[%clk 0:00:52.4]} 30. Nd7+ {[%clk 0:01:40.6]}
30... Ke7 {[%clk 0:00:48.8]} 31. Bxe6 {[%clk 0:01:40.6]} 31... Kd6 {[%clk
0:00:49.2]} 32. Bh3 {[%clk 0:00:51.2]} 32... Rxb3 {[%clk 0:00:42.7]} 33. Ne5
{[%clk 0:00:51]} 33... Nd3 {[%clk 0:00:34.3]} 34. Nc4+ {[%clk 0:00:47.7]} 34...
Kc5 {[%clk 0:00:31.8]} 35. Nxa5 {[%clk 0:00:47.7]} 35... Rb2 {[%clk 0:00:24.3]}
36. Re8 {[%clk 0:00:34.3]} 36... Nxf2 {[%clk 0:00:22]} 37. Nxb7+ {[%clk
0:00:29.5]} 37... Kb6 {[%clk 0:00:17]} 38. Bg2 {[%clk 0:00:30.8]} 38... Nc3
{[%clk 0:00:13.1]} 39. a5+ {[%clk 0:00:23.5]} 39... Ka7 {[%clk 0:00:12.8]} 40.
Nc5 {[%clk 0:00:24.2]} 40... Rb8 {[%clk 0:00:03.2]} 41. Re7+ {[%clk 0:00:22.3]}
1-0

[Event "*** Titled Tuesday Blitz"]
[Site "Chess.com"]
[Date "2018.06.05"]
[Round "9"]
[White "Alexandr_Predke"]
[Black "chessking2151"]
[Result "1-0"]
[WhiteElo "2647"]
[BlackElo "2446"]
[TimeControl "180+2"]
[EndTime "15:10:20 PDT"]
[Termination "Alexandr_Predke won by resignation"]

1. d4 {[%clk 0:03:01.8]} 1... Nf6 {[%clk 0:03:00.6]} 2. Nf3 {[%clk 0:03:02.5]}
2... e6 {[%clk 0:02:58.5]} 3. c4 {[%clk 0:03:03.2]} 3... b6 {[%clk 0:02:59]} 4.
g3 {[%clk 0:03:03.3]} 4... Ba6 {[%clk 0:02:58.3]} 5. Qc2 {[%clk 0:03:01.8]} 5...
Bb4+ {[%clk 0:02:54.6]} 6. Bd2 {[%clk 0:02:57.4]} 6... Qe7 {[%clk 0:02:50.8]} 7.
Bg2 {[%clk 0:02:56.3]} 7... c6 {[%clk 0:02:50.6]} 8. O-O {[%clk 0:02:51.8]} 8...
O-O {[%clk 0:02:51.4]} 9. a3 {[%clk 0:02:00]} 9... Bxd2 {[%clk 0:02:47.6]} 10.
Nbxd2 {[%clk 0:02:01.5]} 10... d5 {[%clk 0:02:49.1]} 11. Ne5 {[%clk 0:02:02.7]}
11... Bb7 {[%clk 0:02:38.5]} 12. e4 {[%clk 0:01:59.5]} 12... Nbd7 {[%clk
0:02:25.2]} 13. Rfe1 {[%clk 0:01:52.6]} 13... Nxe5 {[%clk 0:02:16.4]} 14. dxe5
{[%clk 0:01:52.4]} 14... Nd7 {[%clk 0:02:15.4]} 15. cxd5 {[%clk 0:01:38.5]}
15... Nxe5 {[%clk 0:02:06.9]} 16. f4 {[%clk 0:01:32.5]} 16... Nd7 {[%clk
0:01:57]} 17. dxe6 {[%clk 0:01:29.5]} 17... fxe6 {[%clk 0:01:54.5]} 18. e5
{[%clk 0:01:29.2]} 18... Nc5 {[%clk 0:01:39.2]} 19. b4 {[%clk 0:01:22.8]} 19...
Na6 {[%clk 0:01:40.5]} 20. Be4 {[%clk 0:01:18.3]} 20... g6 {[%clk 0:01:32]} 21.
Rad1 {[%clk 0:01:02]} 21... c5 {[%clk 0:01:31.3]} 22. b5 {[%clk 0:00:55.4]}
22... Bxe4 {[%clk 0:01:24.8]} 23. Nxe4 {[%clk 0:00:54.8]} 23... Nc7 {[%clk
0:01:24.6]} 24. Nf6+ {[%clk 0:00:54.2]} 24... Rxf6 {[%clk 0:01:18.8]} 25. exf6
{[%clk 0:00:55.6]} 25... Qxf6 {[%clk 0:01:20.7]} 26. Qe4 {[%clk 0:00:47.9]}
26... Rd8 {[%clk 0:01:12.2]} 27. Qc6 {[%clk 0:00:37.2]} 27... Qe7 {[%clk
0:01:04]} 28. a4 {[%clk 0:00:32.2]} 28... Rxd1 {[%clk 0:00:49]} 29. Rxd1 {[%clk
0:00:32.2]} 29... Nd5 {[%clk 0:00:50.7]} 30. Re1 {[%clk 0:00:21.9]} 30... Kf7
{[%clk 0:00:50.7]} 31. Qc8 {[%clk 0:00:21.6]} 31... Nf6 {[%clk 0:00:32.1]} 32.
Rd1 {[%clk 0:00:18.5]} 32... Nd5 {[%clk 0:00:33.1]} 33. Qh8 {[%clk 0:00:18.4]}
33... h5 {[%clk 0:00:32.6]} 34. Qh7+ {[%clk 0:00:18.5]} 34... Kf6 {[%clk
0:00:34.1]} 35. Qh8+ {[%clk 0:00:18.4]} 35... Kf7 {[%clk 0:00:34.7]} 36. Qh7+
{[%clk 0:00:19.7]} 36... Kf6 {[%clk 0:00:36]} 37. Qxe7+ {[%clk 0:00:21.1]} 37...
Kxe7 {[%clk 0:00:37.9]} 38. Rc1 {[%clk 0:00:14.9]} 38... Kd6 {[%clk 0:00:38]}
39. Kf2 {[%clk 0:00:15.5]} 39... e5 {[%clk 0:00:24.1]} 40. Kf3 {[%clk
0:00:16.6]} 40... Ke6 {[%clk 0:00:15.6]} 41. Re1 {[%clk 0:00:13.4]} 41... c4
{[%clk 0:00:16.9]} 42. Rxe5+ {[%clk 0:00:11.1]} 42... Kd6 {[%clk 0:00:18.5]} 43.
Ke4 {[%clk 0:00:12.1]} 43... Nc3+ {[%clk 0:00:19.9]} 44. Kd4 {[%clk 0:00:13.1]}
44... Nxa4 {[%clk 0:00:21.4]} 45. Kxc4 {[%clk 0:00:14.3]} 45... Nb2+ {[%clk
0:00:21.8]} 46. Kd4 {[%clk 0:00:15.5]} 46... Na4 {[%clk 0:00:23.1]} 47. Rg5
{[%clk 0:00:16.7]} 1-0

[Event "*** Titled Tuesday Blitz"]
[Site "Chess.com"]
[Date "2018.06.05"]
[Round "9"]
[White "bugsbunny444"]
[Black "Aleksandr_Kholin"]
[Result "1-0"]
[WhiteElo "2367"]
[BlackElo "2427"]
[TimeControl "180+2"]
[EndTime "15:10:37 PDT"]
[Termination "bugsbunny444 won by resignation"]

1. Nf3 {[%clk 0:03:01.9]} 1... b6 {[%clk 0:02:54]} 2. g3 {[%clk 0:03:02.2]} 2...
Bb7 {[%clk 0:02:54.8]} 3. Bg2 {[%clk 0:03:03.8]} 3... Nf6 {[%clk 0:02:55.1]} 4.
O-O {[%clk 0:03:05.3]} 4... e6 {[%clk 0:02:55.7]} 5. c4 {[%clk 0:03:06.3]} 5...
Be7 {[%clk 0:02:55.2]} 6. b3 {[%clk 0:03:07.7]} 6... O-O {[%clk 0:02:55.8]} 7.
Bb2 {[%clk 0:03:09.3]} 7... c5 {[%clk 0:02:55.5]} 8. Nc3 {[%clk 0:03:10.6]} 8...
d6 {[%clk 0:02:55.4]} 9. e3 {[%clk 0:03:12]} 9... Nbd7 {[%clk 0:02:53.2]} 10. d4
{[%clk 0:03:13.6]} 10... Rc8 {[%clk 0:02:52.6]} 11. d5 {[%clk 0:03:13.3]} 11...
e5 {[%clk 0:02:53.4]} 12. e4 {[%clk 0:03:11.2]} 12... Re8 {[%clk 0:02:54.5]} 13.
Ne1 {[%clk 0:03:11.4]} 13... Bf8 {[%clk 0:02:55.7]} 14. Nd3 {[%clk 0:03:12.3]}
14... h6 {[%clk 0:02:53.2]} 15. f4 {[%clk 0:03:05.1]} 15... a6 {[%clk
0:02:51.4]} 16. a4 {[%clk 0:03:05.4]} 16... Rb8 {[%clk 0:02:48]} 17. f5 {[%clk
0:02:24.9]} 17... Be7 {[%clk 0:02:43]} 18. Bc1 {[%clk 0:02:19.4]} 18... Nh7
{[%clk 0:02:39.7]} 19. h4 {[%clk 0:02:20.6]} 19... Nhf6 {[%clk 0:02:36.7]} 20.
Bf3 {[%clk 0:02:18.3]} 20... a5 {[%clk 0:02:34.2]} 21. Ra2 {[%clk 0:02:18.7]}
21... Rc8 {[%clk 0:02:32.1]} 22. Rh2 {[%clk 0:02:14.9]} 22... Nh7 {[%clk
0:02:27.1]} 23. Be3 {[%clk 0:02:09.4]} 23... Nb8 {[%clk 0:02:25]} 24. Kg2 {[%clk
0:02:00.6]} 24... Na6 {[%clk 0:02:25]} 25. Rfh1 {[%clk 0:02:00.8]} 25... Nb4
{[%clk 0:02:24.9]} 26. g4 {[%clk 0:01:55.9]} 26... f6 {[%clk 0:02:23.6]} 27. Be2
{[%clk 0:01:37.3]} 27... Rc7 {[%clk 0:02:20.3]} 28. Ne1 {[%clk 0:01:31.8]} 28...
Kf7 {[%clk 0:02:18]} 29. Nf3 {[%clk 0:01:32.8]} 29... Rf8 {[%clk 0:02:15.4]} 30.
Qd2 {[%clk 0:01:27.7]} 30... Rg8 {[%clk 0:02:13]} 31. Kf1 {[%clk 0:01:23.7]}
31... Ba6 {[%clk 0:02:08.9]} 32. Rg1 {[%clk 0:01:15.6]} 32... Ke8 {[%clk
0:02:06.1]} 33. g5 {[%clk 0:01:15.9]} 33... hxg5 {[%clk 0:02:04.7]} 34. hxg5
{[%clk 0:01:17.8]} 34... Nf8 {[%clk 0:02:03.9]} 35. gxf6 {[%clk 0:01:12.8]}
35... Bxf6 {[%clk 0:02:03.6]} 36. Ng5 {[%clk 0:00:57.3]} 36... Kd7 {[%clk
0:02:01]} 37. Bh5 {[%clk 0:00:48.3]} 37... Kc8 {[%clk 0:01:59.1]} 38. Bf7 {[%clk
0:00:45.2]} 38... Rxf7 {[%clk 0:01:56.4]} 39. Nxf7 {[%clk 0:00:46.2]} 39... Qc7
{[%clk 0:01:57.4]} 40. Ng5 {[%clk 0:00:40.4]} 40... Bxg5 {[%clk 0:01:55.9]} 41.
Rxg5 {[%clk 0:00:39.4]} 41... Kb8 {[%clk 0:01:45.8]} 42. Qe2 {[%clk 0:00:29.3]}
42... Qf7 {[%clk 0:01:43.7]} 43. Ke1 {[%clk 0:00:29.6]} 43... Nd7 {[%clk
0:01:41.5]} 44. Kd2 {[%clk 0:00:22.3]} 44... Nf6 {[%clk 0:01:40.1]} 45. Rg6
{[%clk 0:00:23.6]} 45... Qf8 {[%clk 0:01:38.1]} 46. Bg5 {[%clk 0:00:23.2]} 46...
Ne8 {[%clk 0:01:35.4]} 47. Qh5 {[%clk 0:00:21.6]} 47... Bc8 {[%clk 0:01:32.2]}
48. Qh7 {[%clk 0:00:18.7]} 48... Qf7 {[%clk 0:01:31.1]} 49. Nb5 {[%clk
0:00:15.4]} 49... Rf8 {[%clk 0:01:28.7]} 50. Nxd6 {[%clk 0:00:14.8]} 50... Nxd6
{[%clk 0:01:27.8]} 51. Rxd6 {[%clk 0:00:16.7]} 51... Kc7 {[%clk 0:01:25.9]} 52.
Qg6 {[%clk 0:00:16.8]} 52... Qxg6 {[%clk 0:01:24.5]} 53. Rxg6 {[%clk 0:00:17.8]}
53... Rf7 {[%clk 0:01:25.3]} 54. Rh7 {[%clk 0:00:18.7]} 54... Na6 {[%clk
0:01:21.7]} 55. Rgxg7 {[%clk 0:00:18.4]} 1-0

[Event "*** Titled Tuesday Blitz"]
[Site "Chess.com"]
[Date "2018.06.05"]
[Round "9"]
[White "CarlssonLudvig"]
[Black "DSCC1"]
[Result "1-0"]
[WhiteElo "2095"]
[BlackElo "2133"]
[TimeControl "180+2"]
[EndTime "15:10:37 PDT"]
[Termination "CarlssonLudvig won on time"]

1. Nf3 {[%clk 0:03:01.9]} 1... Nc6 {[%clk 0:02:59.9]} 2. d4 {[%clk 0:03:02.5]}
2... d5 {[%clk 0:03:00.6]} 3. Bf4 {[%clk 0:03:03.4]} 3... Bg4 {[%clk 0:03:02]}
4. Nbd2 {[%clk 0:03:03.4]} 4... e6 {[%clk 0:03:02.9]} 5. h3 {[%clk 0:03:04.3]}
5... Bh5 {[%clk 0:03:03.6]} 6. e3 {[%clk 0:03:05.3]} 6... Bd6 {[%clk 0:03:04.1]}
7. Bxd6 {[%clk 0:03:04.7]} 7... cxd6 {[%clk 0:02:58.9]} 8. c4 {[%clk 0:03:04.5]}
8... dxc4 {[%clk 0:02:57]} 9. Bxc4 {[%clk 0:03:05.2]} 9... d5 {[%clk 0:02:57.6]}
10. Bb5 {[%clk 0:03:03.2]} 10... Ne7 {[%clk 0:02:52.2]} 11. O-O {[%clk 0:03:04]}
11... O-O {[%clk 0:02:52.4]} 12. Qa4 {[%clk 0:03:04]} 12... a6 {[%clk
0:02:50.2]} 13. Bxc6 {[%clk 0:03:03.9]} 13... Nxc6 {[%clk 0:02:52.1]} 14. Rfc1
{[%clk 0:03:03.1]} 14... Qd6 {[%clk 0:02:25.6]} 15. a3 {[%clk 0:02:47.9]} 15...
Rfc8 {[%clk 0:02:01.3]} 16. Qc2 {[%clk 0:02:23.8]} 16... Bg6 {[%clk 0:01:50.4]}
17. Qd1 {[%clk 0:02:24.6]} 17... f6 {[%clk 0:01:16.3]} 18. Nb3 {[%clk
0:02:14.6]} 18... b6 {[%clk 0:01:17.6]} 19. Qd2 {[%clk 0:02:07.9]} 19... Rc7
{[%clk 0:01:07.7]} 20. Rc3 {[%clk 0:02:02.7]} 20... Rac8 {[%clk 0:01:04.3]} 21.
Rac1 {[%clk 0:02:03.9]} 21... a5 {[%clk 0:00:54.9]} 22. Na1 {[%clk 0:01:36.1]}
22... Na7 {[%clk 0:00:33.1]} 23. Rxc7 {[%clk 0:01:16.9]} 23... Rxc7 {[%clk
0:00:35]} 24. Ne1 {[%clk 0:01:11.4]} 24... Nc8 {[%clk 0:00:27]} 25. Rc3 {[%clk
0:01:10.1]} 25... Rc4 {[%clk 0:00:17.8]} 26. Qc1 {[%clk 0:00:30]} 26... Qc7
{[%clk 0:00:16.8]} 27. Rxc4 {[%clk 0:00:28.8]} 27... dxc4 {[%clk 0:00:16]} 28.
Nac2 {[%clk 0:00:21.6]} 28... Nd6 {[%clk 0:00:15.8]} 29. Nf3 {[%clk 0:00:22.5]}
29... b5 {[%clk 0:00:14.4]} 30. Nd2 {[%clk 0:00:22.9]} 30... Qc6 {[%clk
0:00:13.6]} 31. Nb1 {[%clk 0:00:23.7]} 31... Ne4 {[%clk 0:00:13.4]} 32. Ne1
{[%clk 0:00:23.3]} 32... b4 {[%clk 0:00:08.6]} 33. axb4 {[%clk 0:00:21.4]} 33...
axb4 {[%clk 0:00:10.5]} 34. Nd2 {[%clk 0:00:18.8]} 34... Nxd2 {[%clk 0:00:09]}
35. Qxd2 {[%clk 0:00:20.7]} 35... c3 {[%clk 0:00:09.9]} 36. Qc1 {[%clk
0:00:18.6]} 36... Qc4 {[%clk 0:00:07.6]} 37. f3 {[%clk 0:00:09.8]} 37... Qb3
{[%clk 0:00:07.3]} 38. bxc3 {[%clk 0:00:09.5]} 38... bxc3 {[%clk 0:00:08.1]} 39.
e4 {[%clk 0:00:08.7]} 39... Qc4 {[%clk 0:00:06.5]} 40. Nc2 {[%clk 0:00:08.8]}
40... Be8 {[%clk 0:00:06]} 41. Qf1 {[%clk 0:00:08.1]} 41... Qb3 {[%clk
0:00:05.3]} 42. Qd1 {[%clk 0:00:05.8]} 42... Ba4 {[%clk 0:00:05.7]} 43. Qd3
{[%clk 0:00:02.6]} 43... Qxc2 {[%clk 0:00:06]} 44. Qc4 {[%clk 0:00:04]} 1-0

[Event "*** Titled Tuesday Blitz"]
[Site "Chess.com"]
[Date "2018.06.05"]
[Round "9"]
[White "Kubas1010"]
[Black "krzysztofszczurek"]
[Result "0-1"]
[WhiteElo "2372"]
[BlackElo "2251"]
[TimeControl "180+2"]
[EndTime "15:10:50 PDT"]
[Termination "krzysztofszczurek won by resignation"]

1. Nf3 {[%clk 0:03:01.1]} 1... Nf6 {[%clk 0:02:59.9]} 2. c4 {[%clk 0:03:01.8]}
2... g6 {[%clk 0:03:00.6]} 3. Nc3 {[%clk 0:03:03.1]} 3... Bg7 {[%clk 0:03:01.3]}
4. e4 {[%clk 0:03:04.2]} 4... d6 {[%clk 0:03:01.8]} 5. d4 {[%clk 0:03:05.6]}
5... O-O {[%clk 0:03:02.5]} 6. h3 {[%clk 0:03:07.1]} 6... Nbd7 {[%clk
0:03:02.8]} 7. Bg5 {[%clk 0:03:06.8]} 7... h6 {[%clk 0:03:02.9]} 8. Be3 {[%clk
0:03:07.1]} 8... e5 {[%clk 0:03:02]} 9. d5 {[%clk 0:03:08.3]} 9... Nc5 {[%clk
0:03:01.2]} 10. Nd2 {[%clk 0:03:09]} 10... a5 {[%clk 0:03:01]} 11. g4 {[%clk
0:03:09.7]} 11... Nh7 {[%clk 0:02:59.8]} 12. Be2 {[%clk 0:02:56.7]} 12... f5
{[%clk 0:02:52.9]} 13. gxf5 {[%clk 0:02:52.8]} 13... gxf5 {[%clk 0:02:53.2]} 14.
Rg1 {[%clk 0:02:36.9]} 14... Qh4 {[%clk 0:02:22.4]} 15. Qc2 {[%clk 0:02:36.6]}
15... f4 {[%clk 0:02:12.9]} 16. Bxc5 {[%clk 0:02:37]} 16... dxc5 {[%clk
0:02:12.7]} 17. Bg4 {[%clk 0:02:38.1]} 17... Ng5 {[%clk 0:02:10]} 18. O-O-O
{[%clk 0:02:38.1]} 18... Qxf2 {[%clk 0:02:08.4]} 19. Rdf1 {[%clk 0:01:54.5]}
19... Qh4 {[%clk 0:02:04.8]} 20. Nf3 {[%clk 0:01:51.9]} 20... Nxf3 {[%clk
0:02:01.5]} 21. Rxf3 {[%clk 0:01:48.9]} 21... Kh7 {[%clk 0:01:57]} 22. Qg2
{[%clk 0:01:25.8]} 22... Bxg4 {[%clk 0:01:54.8]} 23. hxg4 {[%clk 0:01:26]} 23...
Bf6 {[%clk 0:01:54.2]} 24. Rh3 {[%clk 0:01:23.9]} 24... Qg5 {[%clk 0:01:54]} 25.
Kc2 {[%clk 0:01:01.7]} 25... Rg8 {[%clk 0:01:50.8]} 26. Rh5 {[%clk 0:00:55.8]}
26... Qxh5 {[%clk 0:01:48.7]} 27. gxh5 {[%clk 0:00:56.3]} 27... Rxg2+ {[%clk
0:01:49]} 28. Rxg2 {[%clk 0:00:58.2]} 28... Rg8 {[%clk 0:01:48.7]} 29. Rxg8
{[%clk 0:00:53.9]} 29... Kxg8 {[%clk 0:01:49.4]} 30. Kd3 {[%clk 0:00:53.5]}
30... Kf7 {[%clk 0:01:49.5]} 31. Ne2 {[%clk 0:00:39.7]} 31... Bh4 {[%clk
0:01:27.5]} 32. Ng1 {[%clk 0:00:40.2]} 32... Bf2 {[%clk 0:01:28.2]} 33. Nf3
{[%clk 0:00:40.8]} 33... Bd4 {[%clk 0:01:29.5]} 34. b3 {[%clk 0:00:31]} 34...
Kf6 {[%clk 0:01:29.4]} 35. Ke2 {[%clk 0:00:31.5]} 35... Bb2 {[%clk 0:01:25.9]}
36. Kf1 {[%clk 0:00:31.2]} 36... c6 {[%clk 0:01:12.2]} 37. a4 {[%clk 0:00:10.2]}
37... Bd4 {[%clk 0:01:00.6]} 38. dxc6 {[%clk 0:00:07.5]} 38... bxc6 {[%clk
0:01:00.3]} 39. Kg2 {[%clk 0:00:09]} 39... Be3 {[%clk 0:00:58.4]} 40. Kh3 {[%clk
0:00:10.1]} 40... Bf2 {[%clk 0:00:56.9]} 41. Kg4 {[%clk 0:00:11.3]} 41... Bg3
{[%clk 0:00:56.2]} 42. Ng1 {[%clk 0:00:11.9]} 42... Bf2 {[%clk 0:00:55.4]} 43.
Ne2 {[%clk 0:00:12.8]} 43... Be3 {[%clk 0:00:53.9]} 44. Nc3 {[%clk 0:00:13.7]}
44... Bd4 {[%clk 0:00:53]} 45. Ne2 {[%clk 0:00:11.3]} 45... Be3 {[%clk 0:00:52]}
46. Nc3 {[%clk 0:00:11]} 46... Bd4 {[%clk 0:00:51.4]} 47. Nd1 {[%clk 0:00:12]}
47... Kf7 {[%clk 0:00:48.9]} 48. Kh4 {[%clk 0:00:12.7]} 48... Ke6 {[%clk
0:00:48.7]} 49. Kg4 {[%clk 0:00:14]} 49... Kf6 {[%clk 0:00:49.4]} 50. Kh4 {[%clk
0:00:15.4]} 50... f3 {[%clk 0:00:40.5]} 51. Kg3 {[%clk 0:00:16.7]} 51... f2
{[%clk 0:00:39.4]} 52. Nxf2 {[%clk 0:00:11.5]} 52... Bxf2+ {[%clk 0:00:39.9]}
53. Kxf2 {[%clk 0:00:13.4]} 53... Kg5 {[%clk 0:00:41.4]} 54. Kg3 {[%clk
0:00:15.3]} 54... Kxh5 {[%clk 0:00:42.2]} 55. Kh3 {[%clk 0:00:17]} 55... Kg5
{[%clk 0:00:43.2]} 56. Kg3 {[%clk 0:00:17.8]} 56... h5 {[%clk 0:00:44.6]} 57.
Kf3 {[%clk 0:00:18.5]} 57... h4 {[%clk 0:00:45.3]} 58. Ke3 {[%clk 0:00:18.1]}
58... Kg4 {[%clk 0:00:46.2]} 59. Kf2 {[%clk 0:00:19.3]} 59... Kf4 {[%clk
0:00:46.9]} 0-1